fUSD/lending_fUSD_20250307
["ID","MTS","AMOUNT","RATE_DAILY","PERIOD"]
[355571450,1741306251818,-500.0,9.993e-05,2]
[355571451,1741306251827,-500.0,9.993e-05,2]
[355571452,1741306251837,-500.0,9.993e-05,2]
[355571453,1741306251847,-500.0,9.993e-05,2]
[355571454,1741306251857,-500.0,9.993e-05,2]
[355571455,1741306251867,-500.0,9.993e-05,2]
[355571456,1741306251878,-500.0,9.993e-05,2]
[355571457,1741306251888,-500.0,9.993e-05,2]
[355571458,1741306251898,-500.0,9.993e-05,2]
[355571459,1741306251907,-500.0,9.993e-05,2]
[355571460,1741306251918,-500.0,9.993e-05,2]
[355571461,1741306251927,-500.0,9.993e-05,2]
[355571462,1741306251939,-500.0,9.993e-05,2]
[355571463,1741306251948,-500.0,9.993e-05,2]
[355571464,1741306251958,-500.0,9.993e-05,2]
[355571465,1741306251968,-500.0,9.993e-05,2]
[355571466,1741306251982,-500.0,9.993e-05,2]
[355571467,1741306251996,-500.0,9.993e-05,2]
[355571468,1741306252008,-500.0,9.993e-05,2]
[355571469,1741306252019,-500.0,9.993e-05,2]
[355571470,1741306252031,-500.0,9.993e-05,2]
[355571471,1741306252046,-500.0,9.993e-05,2]
[355571472,1741306252059,-500.0,9.993e-05,2]
[355571473,1741306252075,-500.0,9.993e-05,2]
[355571474,1741306252089,-500.0,9.993e-05,2]
[355571475,1741306252103,-500.0,9.993e-05,2]
[355571476,1741306252115,-500.0,9.993e-05,2]
[355571477,1741306252127,-500.0,9.993e-05,2]
[355571478,1741306252137,-500.0,9.993e-05,2]
[355571479,1741306252151,-500.0,9.993e-05,2]
[355571480,1741306252164,-500.0,9.993e-05,2]
[355571481,1741306252177,-500.0,9.993e-05,2]
[355571482,1741306252190,-500.0,9.993e-05,2]
[355571483,1741306252203,-151.0,9.993e-05,2]
[355571484,1741306252215,-500.0,9.993e-05,2]
[355571485,1741306252228,-151.0,9.993e-05,2]
[355571486,1741306252240,-500.0,9.993e-05,2]
[355571487,1741306252252,-500.0,9.993e-05,2]
[355571488,1741306252266,-500.0,9.993e-05,2]
[355571489,1741306252279,-4117.16,9.993e-05,2]
[355571490,1741306252293,-191.275524,9.993e-05,2]
[355571491,1741306252305,-151.0,9.994e-05,2]
[355571492,1741306252317,-500.0,9.995e-05,2]
[355571493,1741306252329,-500.0,9.995e-05,2]
[355571494,1741306252342,-10577.334559,9.996e-05,2]
[355571495,1741306252356,-151.0,9.999e-05,2]
[355571496,1741306252368,-221.074135,9.999e-05,2]
[355571497,1741306252381,-151.0,9.999e-05,2]
[355571498,1741306252391,-500.0,9.999e-05,2]
[355571499,1741306252402,-458.80332322,9.999e-05,2]
[355571500,1741306252413,-500.0,9.999e-05,2]
[355571501,1741306252424,-500.0,9.999e-05,2]
[355571502,1741306252441,-500.0,9.999e-05,2]
[355571503,1741306252452,-523.98819435,9.999e-05,2]
[355571504,1741306252463,-151.0,9.999e-05,2]
[355571505,1741306252473,-151.0,9.999e-05,2]
[355571506,1741306252485,-574.31,9.999e-05,2]
[355571507,1741306252497,-500.0,9.999e-05,2]
[355571508,1741306252511,-4117.16,9.999e-05,2]
[355571509,1741306252523,-4117.16,9.999e-05,2]
[355571510,1741306252534,-4117.16,9.999e-05,2]
[355571511,1741306252545,-4117.16,9.999e-05,2]
[355571512,1741306252556,-4117.16,9.999e-05,2]
[355571513,1741306252568,-4117.16,9.999e-05,2]
[355571514,1741306252581,-4117.16,9.999e-05,2]
[355571515,1741306252592,-4117.16,9.999e-05,2]
[355571516,1741306252604,-4117.16,9.999e-05,2]
[355571517,1741306252619,-4117.16,9.999e-05,2]
[355571518,1741306252631,-4117.16,9.999e-05,2]
[355571519,1741306252642,-4117.16,9.999e-05,2]
[355571520,1741306252653,-4117.16,9.999e-05,2]
[355571521,1741306252664,-4117.16,9.999e-05,2]
[355571522,1741306252675,-4117.16,9.999e-05,2]
[355571523,1741306252688,-4117.16,9.999e-05,2]
[355571524,1741306252699,-4117.16,9.999e-05,2]
[355571525,1741306252710,-4117.16,9.999e-05,2]
[355571526,1741306252727,-4117.16,9.999e-05,2]
[355571527,1741306252738,-4117.16,9.999e-05,2]
[355571528,1741306252750,-4117.17948112,9.999e-05,2]
[355571529,1741306252762,-711.0,0.0001,2]
[355571530,1741306252774,-136609.99082631,0.0001,2]
[355571531,1741306363176,167.55,7.243e-05,2]
[355571533,1741306477331,649.42883108,8.729e-05,2]
[355571534,1741306477363,1350.57116892,8.729e-05,2]
[355571535,1741306495871,533.72131974,8.729e-05,2]
[355571536,1741306495901,3039.58491478,8.729e-05,2]
[355571537,1741306521550,5000.0,0.00014,30]
[355571538,1741306542321,260.3702886,0.00014,30]
[355571539,1741306554066,1622.37965097,8.659e-05,2]
[355571540,1741306825903,606.235,0.000201,120]
[355571541,1741306860692,-200.0,8.569e-05,2]
[355571542,1741306860718,-100.0,8.611e-05,2]
[355571543,1741306969773,2285.41811041,8.51e-05,2]
[355571544,1741306970445,-300.0,8.51e-05,2]
[355571545,1741306973991,-300.0,8.51e-05,2]
[355571546,1741306978766,-300.0,8.51e-05,2]
[355571547,1741306982244,-300.0,8.51e-05,2]
[355571548,1741306986158,-300.0,8.484e-05,2]
[355571549,1741306990445,-300.0,8.484e-05,2]
[355571550,1741306994271,-300.0,8.484e-05,2]
[355571551,1741306997934,-300.0,8.484e-05,2]
[355571552,1741307044175,-300.0,8.484e-05,2]
[355571554,1741307137143,1729.9,8e-05,2]
[355571555,1741307137181,1597.86542506,8e-05,2]
[355571556,1741307137207,29672.23457494,8e-05,2]
[355571557,1741307155605,34695.0691559,6.94e-05,2]
[355571558,1741307167044,8237.71990073,8e-05,2]
[355571576,1741307404429,150.0,8e-05,3]
[355571577,1741307408870,200.0,8e-05,3]
[355571611,1741307431849,-2485.273,8.219e-05,2]
[355571612,1741307431861,-857.9,8.219e-05,2]
[355571613,1741307432185,-298.887,8.219e-05,2]
[355571614,1741307432195,-834.62,8.427e-05,2]
[355571615,1741307432205,-2508.2,8.441e-05,2]
[355571616,1741307432215,-250.0,8.45e-05,2]
[355571617,1741307432224,-300.0,8.467e-05,2]
[355571618,1741307432233,-159.96,8.468e-05,2]
[355571619,1741307432243,-27584.58275746,8.468e-05,2]
[355571620,1741307432252,-150.0,8.509e-05,2]
[355571621,1741307432262,-10311.01580634,8.51e-05,2]
[355571622,1741307432282,-10103.56608325,8.51e-05,2]
[355571623,1741307432292,-675.92,8.546e-05,2]
[355571624,1741307432302,-900.0,8.611e-05,2]
[355571625,1741307432311,-999.99,8.611e-05,2]
[355571626,1741307432320,-336.98,8.638e-05,2]
[355571627,1741307432329,-1485.10034903,8.659e-05,2]
[355571628,1741307432339,-128.59518037,8.729e-05,2]
[355571629,1741307432367,-353.21545633,8.729e-05,2]
[355571630,1741307432407,-263.6,8.729e-05,2]
[355571631,1741307432420,-611.09312878,8.729e-05,2]
[355571632,1741307432430,-200.0,8.737e-05,3]
[355571633,1741307432440,-217.35376334,8.943e-05,2]
[355571634,1741307432453,-1614.94770286,9e-05,2]
[355571635,1741307432469,-778.56059845,9e-05,2]
[355571636,1741307432481,-1294.40649979,9e-05,2]
[355571637,1741307432493,-2250.17852038,9e-05,2]
[355571638,1741307432511,-3983.04186657,9e-05,2]
[355571639,1741307432523,-231.08035897,9e-05,2]
[355571640,1741307432533,-159.47,9.045e-05,2]
[355571641,1741307432543,-500.0,9.084e-05,2]
[355571642,1741307432552,-1100.0,9.084e-05,2]
[355571643,1741307432562,-159.47,9.101e-05,2]
[355571644,1741307432571,-1852.42,9.112e-05,2]
[355571645,1741307432580,-159.47,9.157e-05,2]
[355571646,1741307432590,-159.47,9.212e-05,2]
[355571647,1741307432599,-765.38,9.214e-05,2]
[355571648,1741307432609,-159.47,9.268e-05,2]
[355571649,1741307432618,-420.0,9.313e-05,2]
[355571650,1741307432627,-159.47,9.324e-05,2]
[355571651,1741307432640,-550.0,9.332e-05,2]
[355571652,1741307432650,-255.0,9.36e-05,2]
[355571653,1741307432660,-159.47,9.38e-05,2]
[355571654,1741307432669,-550.0,9.401e-05,2]
[355571655,1741307432679,-159.47,9.435e-05,2]
[355571656,1741307432688,-150.0,9.452e-05,2]
[355571657,1741307432698,-150.0,9.452e-05,2]
[355571658,1741307432708,-150.0,9.452e-05,2]
[355571659,1741307432718,-200.0,9.474e-05,3]
[355571660,1741307432727,-834.62,9.481e-05,2]
[355571661,1741307432737,-159.47,9.491e-05,2]
[355571662,1741307432746,-1189.32844579,9.5e-05,2]
[355571663,1741307432756,-159.47,9.547e-05,2]
[355571664,1741307432766,-150.0,9.562e-05,7]
[355571665,1741307432776,-5763.9557,9.6e-05,2]
[355571666,1741307432785,-2049.3753,9.6e-05,2]
[355571667,1741307432795,-159.47,9.602e-05,2]
[355571668,1741307432805,-831.35,9.627e-05,2]
[355571669,1741307432816,-159.47,9.658e-05,2]
[355571670,1741307432825,-1000.0,9.687e-05,2]
[355571671,1741307432834,-1702.81852932,9.7e-05,2]
[355571672,1741307432844,-1413.94870591,9.7e-05,2]
[355571673,1741307432857,-288.86982341,9.7e-05,2]
[355571674,1741307432867,-159.47,9.714e-05,2]
[355571675,1741307432879,-159.47,9.769e-05,2]
[355571676,1741307432894,-300.0,9.79e-05,2]
[355571677,1741307432904,-282.4501,9.79e-05,2]
[355571678,1741307432914,-530.049,9.79e-05,2]
[355571679,1741307432923,-2500.0,9.79e-05,2]
[355571680,1741307432933,-4103.4277,9.793e-05,2]
[355571681,1741307432942,-10430.12363367,9.828e-05,2]
[355571682,1741307432952,-831.4352,9.889e-05,2]
[355571683,1741307432961,-513.71174885,9.89e-05,2]
[355571684,1741307432971,-107085.3098,9.89e-05,2]
[355571685,1741307432981,-5000.0,9.89e-05,2]
[355571686,1741307432990,-4734.9339,9.9e-05,2]
[355571687,1741307432999,-1170.528,9.9e-05,2]
[355571688,1741307433008,-513.71174885,9.912e-05,2]
[355571689,1741307433018,-984.60331199,9.916e-05,2]
[355571690,1741307433027,-984.60331199,9.97e-05,2]
[355571691,1741307433037,-984.60331199,9.971e-05,2]
[355571692,1741307433047,-500.0,9.973e-05,2]
[355571693,1741307433058,-479.65158707,9.983e-05,2]
[355571694,1741307433068,-995.31,9.987e-05,2]
[355571695,1741307433078,-1229.81,9.987e-05,2]
[355571696,1741307433088,-1864.6,9.987e-05,2]
[355571697,1741307433099,-924.95,9.987e-05,2]
[355571698,1741307433109,-2920.64,9.987e-05,2]
[355571699,1741307433120,-2207.97,9.987e-05,2]
[355571700,1741307433131,-500.0,9.987e-05,2]
[355571701,1741307433147,-2172.75,9.987e-05,2]
[355571702,1741307433157,-500.0,9.987e-05,2]
[355571703,1741307433167,-1057.51,9.987e-05,2]
[355571704,1741307433178,-500.0,9.987e-05,2]
[355571705,1741307433188,-3814.01,9.987e-05,2]
[355571706,1741307433199,-1627.71,9.987e-05,2]
[355571707,1741307433208,-2616.08,9.987e-05,2]
[355571708,1741307433218,-500.0,9.987e-05,2]
[355571709,1741307433227,-500.0,9.987e-05,2]
[355571710,1741307433237,-1692.62,9.987e-05,2]
[355571711,1741307433247,-2605.02,9.987e-05,2]
[355571712,1741307433256,-500.0,9.987e-05,2]
[355571713,1741307433266,-8053.67,9.987e-05,2]
[355571714,1741307433276,-1319.55,9.987e-05,2]
[355571715,1741307433286,-1172.16,9.987e-05,2]
[355571716,1741307433295,-1046.71,9.987e-05,2]
[355571717,1741307433304,-1539.07,9.987e-05,2]
[355571718,1741307433315,-1116.77,9.987e-05,2]
[355571719,1741307433324,-500.0,9.987e-05,2]
[355571720,1741307433334,-500.0,9.987e-05,2]
[355571721,1741307433343,-500.0,9.987e-05,2]
[355571722,1741307433353,-500.0,9.987e-05,2]
[355571723,1741307433363,-2702.82,9.988e-05,2]
[355571724,1741307433373,-648.71,9.988e-05,2]
[355571725,1741307433388,-500.0,9.988e-05,2]
[355571726,1741307433399,-6879.92,9.988e-05,2]
[355571727,1741307433410,-1532.61,9.988e-05,2]
[355571728,1741307433422,-772.43,9.988e-05,2]
[355571729,1741307433432,-1838.88,9.988e-05,2]
[355571730,1741307433443,-907.79,9.988e-05,2]
[355571731,1741307433454,-500.0,9.988e-05,2]
[355571732,1741307433466,-2103.843727,9.988e-05,2]
[355571733,1741307433476,-2557.0,9.988e-05,2]
[355571734,1741307433486,-1452.48,9.988e-05,2]
[355571735,1741307433496,-2517.580155,9.988e-05,2]
[355571736,1741307433506,-2665.92,9.988e-05,2]
[355571737,1741307433516,-3675.38,9.988e-05,2]
[355571738,1741307433527,-154.095925,9.988e-05,2]
[355571740,1741307433537,-2024.52,9.988e-05,2]
[355571742,1741307433547,-172.302198,9.988e-05,2]
[355571744,1741307433558,-1436.61,9.988e-05,2]
[355571746,1741307433568,-1627.32,9.988e-05,2]
[355571748,1741307433578,-6636.38,9.988e-05,2]
[355571750,1741307433588,-2076.95,9.988e-05,2]
[355571752,1741307433597,-2339.15,9.988e-05,2]
[355571754,1741307433607,-1371.06,9.988e-05,2]
[355571756,1741307433616,-1624.69,9.988e-05,2]
[355571758,1741307433627,-2918.22,9.988e-05,2]
[355571760,1741307433640,-709.31,9.988e-05,2]
[355571762,1741307433650,-1814.5,9.988e-05,2]
[355571764,1741307433660,-3198.98491225,9.988e-05,2]
[355571803,1741307434041,-98.00508775,9.988e-05,2]
[355571805,1741307434051,-1808.96,9.988e-05,2]
[355571808,1741307434060,-5525.54,9.988e-05,2]
[355571810,1741307434070,-500.0,9.988e-05,2]
[355571812,1741307434079,-1794.62,9.988e-05,2]
[355571813,1741307434088,-1777.31,9.988e-05,2]
[355571816,1741307434099,-9272.75,9.988e-05,2]
[355571817,1741307434109,-911.6,9.989e-05,2]
[355571819,1741307434119,-836.45,9.989e-05,2]
[355571821,1741307434128,-534.05,9.989e-05,2]
[355571823,1741307434141,-500.0,9.989e-05,2]
[355571825,1741307434151,-500.0,9.989e-05,2]
[355571827,1741307434161,-565.09,9.989e-05,2]
[355571829,1741307434171,-637.92,9.989e-05,2]
[355571832,1741307434181,-500.0,9.989e-05,2]
[355571834,1741307434192,-500.0,9.989e-05,2]
[355571836,1741307434202,-500.0,9.989e-05,2]
[355571838,1741307434211,-925.59,9.989e-05,2]
[355571839,1741307434220,-500.0,9.989e-05,2]
[355571841,1741307434230,-500.0,9.989e-05,2]
[355571843,1741307434240,-1069.78,9.989e-05,2]
[355571845,1741307434249,-500.0,9.989e-05,2]
[355571847,1741307434259,-856.43,9.989e-05,2]
[355571849,1741307434269,-500.0,9.989e-05,2]
[355571851,1741307434281,-500.0,9.989e-05,2]
[355571853,1741307434294,-884.19,9.989e-05,2]
[355571855,1741307434304,-614.92,9.989e-05,2]
[355571857,1741307434314,-854.43,9.989e-05,2]
[355571859,1741307434324,-500.0,9.989e-05,2]
[355571861,1741307434334,-500.0,9.989e-05,2]
[355571863,1741307434344,-500.0,9.989e-05,2]
[355571865,1741307434354,-938.12,9.989e-05,2]
[355571867,1741307434364,-500.0,9.989e-05,2]
[355571870,1741307434374,-500.0,9.989e-05,2]
[355571871,1741307434387,-602.46,9.989e-05,2]
[355571873,1741307434397,-485.5549953,9.989e-05,2]
[355571875,1741307434407,-500.0,9.989e-05,2]
[355571878,1741307434419,-500.0,9.989e-05,2]
[355571880,1741307434429,-500.0,9.989e-05,2]
[355571882,1741307434440,-500.0,9.989e-05,2]
[355571884,1741307434451,-521.79,9.989e-05,2]
[355571886,1741307434463,-500.0,9.989e-05,2]
[355571888,1741307434473,-660.0,9.989e-05,2]
[355571889,1741307434482,-515.04,9.989e-05,2]
[355571891,1741307434492,-500.0,9.989e-05,2]
[355571893,1741307434502,-500.0,9.989e-05,2]
[355571896,1741307434512,-500.0,9.989e-05,2]
[355571898,1741307434522,-500.0,9.989e-05,2]
[355571900,1741307434533,-500.0,9.989e-05,2]
[355571901,1741307434542,-500.0,9.989e-05,2]
[355571903,1741307434551,-500.0,9.989e-05,2]
[355571929,1741307434807,-500.0,9.989e-05,2]
[355571931,1741307434817,-500.0,9.989e-05,2]
[355571933,1741307434827,-517.45,9.989e-05,2]
[355571935,1741307434836,-500.0,9.989e-05,2]
[355571937,1741307434846,-678.39,9.989e-05,2]
[355571939,1741307434855,-500.0,9.989e-05,2]
[355571941,1741307434865,-500.0,9.989e-05,2]
[355571943,1741307434875,-881.56,9.989e-05,2]
[355571944,1741307434889,-500.0,9.989e-05,2]
[355571946,1741307434898,-500.0,9.989e-05,2]
[355571948,1741307434908,-500.0,9.989e-05,2]
[355571950,1741307434918,-500.0,9.989e-05,2]
[355571952,1741307434927,-500.0,9.989e-05,2]
[355571954,1741307434938,-500.0,9.989e-05,2]
[355571957,1741307434947,-500.0,9.989e-05,2]
[355571958,1741307434957,-500.0,9.989e-05,2]
[355571960,1741307434966,-500.0,9.989e-05,2]
[355571962,1741307434975,-591.94,9.989e-05,2]
[355571964,1741307434984,-745.04,9.989e-05,2]
[355571966,1741307434994,-500.0,9.989e-05,2]
[355571968,1741307435004,-500.0,9.989e-05,2]
[355571970,1741307435014,-500.0,9.989e-05,2]
[355571972,1741307435023,-500.0,9.989e-05,2]
[355571974,1741307435033,-500.0,9.989e-05,2]
[355571976,1741307435043,-500.0,9.989e-05,2]
[355571978,1741307435053,-500.0,9.989e-05,2]
[355571980,1741307435063,-500.0,9.989e-05,2]
[355571982,1741307435073,-690.13,9.989e-05,2]
[355571984,1741307435083,-500.0,9.989e-05,2]
[355571986,1741307435092,-500.0,9.989e-05,2]
[355571988,1741307435101,-500.0,9.989e-05,2]
[355571990,1741307435110,-500.0,9.989e-05,2]
[355571992,1741307435119,-500.0,9.989e-05,2]
[355571994,1741307435129,-500.0,9.989e-05,2]
[355571996,1741307435144,-713.03,9.989e-05,2]
[355571998,1741307435154,-500.0,9.989e-05,2]
[355572000,1741307435163,-500.0,9.989e-05,2]
[355572002,1741307435173,-500.0,9.989e-05,2]
[355572004,1741307435183,-500.0,9.989e-05,2]
[355572006,1741307435194,-500.0,9.989e-05,2]
[355572008,1741307435204,-500.0,9.989e-05,2]
[355572010,1741307435213,-937.6,9.989e-05,2]
[355572012,1741307435222,-500.0,9.989e-05,2]
[355572014,1741307435231,-500.0,9.989e-05,2]
[355572016,1741307435241,-500.0,9.989e-05,2]
[355572018,1741307435250,-519.63,9.989e-05,2]
[355572020,1741307435260,-1042.9,9.989e-05,2]
[355572022,1741307435269,-500.0,9.989e-05,2]
[355572024,1741307435278,-638.19,9.989e-05,2]
[355572026,1741307435288,-500.0,9.989e-05,2]
[355572028,1741307435297,-507.49,9.989e-05,2]
[355572029,1741307435307,-500.0,9.989e-05,2]
[355572031,1741307435316,-500.0,9.989e-05,2]
[355572033,1741307435325,-500.0,9.989e-05,2]
[355572035,1741307435334,-500.0,9.989e-05,2]
[355572038,1741307435345,-504.84,9.989e-05,2]
[355572039,1741307435354,-500.0,9.989e-05,2]
[355572041,1741307435364,-500.0,9.989e-05,2]
[355572043,1741307435374,-500.0,9.989e-05,2]
[355572045,1741307435384,-926.88,9.989e-05,2]
[355572047,1741307435396,-500.0,9.989e-05,2]
[355572049,1741307435405,-500.0,9.989e-05,2]
[355572051,1741307435415,-500.0,9.989e-05,2]
[355572053,1741307435424,-500.0,9.989e-05,2]
[355572055,1741307435434,-1462.89,9.989e-05,2]
[355572057,1741307435445,-234.2493471,9.989e-05,2]
[355572059,1741307435461,-265.7506529,9.989e-05,2]
[355572061,1741307435471,-500.0,9.989e-05,2]
[355572063,1741307435484,-489.44774943,9.989e-05,2]
[355572066,1741307435496,-10.55225057,9.989e-05,2]
[355572068,1741307435506,-489.44774943,9.989e-05,2]
[355572070,1741307435518,-457.12225057,9.989e-05,2]
[355572072,1741307435528,-685.82,9.989e-05,2]
[355572074,1741307435538,-791.94,9.989e-05,2]
[355572076,1741307435547,-500.0,9.989e-05,2]
[355572078,1741307435556,-1004.09,9.989e-05,2]
[355572080,1741307435566,-280.68695402,9.989e-05,2]
[355572082,1741307435578,-219.31304598,9.989e-05,2]
[355572084,1741307435588,-500.0,9.989e-05,2]
[355572086,1741307435597,-90.69764111,9.989e-05,2]
[355572089,1741307435624,-409.30235889,9.989e-05,2]
[355572091,1741307435634,-93.49764111,9.989e-05,2]
[355572293,1741307437718,-500.0,9.987e-05,2]
[355572294,1741307437728,-500.0,9.987e-05,2]
[355572295,1741307437737,-500.0,9.987e-05,2]
[355572296,1741307437752,-500.0,9.987e-05,2]
[355572297,1741307437761,-406.50235889,9.989e-05,2]
[355572298,1741307437769,-500.0,9.989e-05,2]
[355572299,1741307437778,-500.0,9.989e-05,2]
[355572300,1741307437787,-500.0,9.989e-05,2]
[355572301,1741307437796,-500.0,9.989e-05,2]
[355572302,1741307437805,-500.0,9.989e-05,2]
[355572304,1741307437815,-500.0,9.989e-05,2]
[355572306,1741307437824,-500.0,9.989e-05,2]
[355572308,1741307437834,-500.0,9.989e-05,2]
[355572310,1741307437843,-500.0,9.989e-05,2]
[355572312,1741307437854,-930.19,9.989e-05,2]
[355572314,1741307437865,-500.0,9.989e-05,2]
[355572316,1741307437879,-500.0,9.989e-05,2]
[355572318,1741307437893,-500.0,9.989e-05,2]
[355572320,1741307437902,-500.0,9.989e-05,2]
[355572322,1741307437911,-775.0,9.989e-05,2]
[355572324,1741307437919,-500.0,9.989e-05,2]
[355572326,1741307437927,-479.35528325,9.989e-05,2]
[355572332,1741307437970,-554.37471675,9.989e-05,2]
[355572334,1741307437980,-1039.83,9.989e-05,2]
[355572336,1741307437989,-676.64,9.989e-05,2]
[355572338,1741307437998,-500.0,9.989e-05,2]
[355572340,1741307438007,-75.15528325,9.989e-05,2]
[355572344,1741307438037,-737.229999,9.989e-05,2]
[355572346,1741307438048,-540.19471775,9.989e-05,2]
[355572348,1741307438058,-423.06966314,9.989e-05,2]
[355572350,1741307438069,-308.82033686,9.989e-05,2]
[355572352,1741307438079,-500.0,9.989e-05,2]
[355572354,1741307438088,-500.0,9.989e-05,2]
[355572356,1741307438097,-500.0,9.989e-05,2]
[355572358,1741307438106,-374.59966314,9.989e-05,2]
[355572368,1741307438194,-500.0,9.987e-05,2]
[355572371,1741307438204,-853.07033686,9.989e-05,2]
[355572374,1741307438214,-500.0,9.989e-05,2]
[355572377,1741307438224,-387.71208691,9.989e-05,2]
[355572538,1741307440112,-397.91953423,9.889e-05,2]
[355572539,1741307440125,-0.61446577,9.889e-05,2]
[355572540,1741307440161,-198.47412112,9.889e-05,2]
[355572541,1741307440170,-642.52,9.987e-05,2]
[355572542,1741307440180,-240.58759185,9.989e-05,2]
[355572543,1741307440192,-675.81032124,9.989e-05,2]
[355572544,1741307440202,-449.88671582,9.989e-05,2]
[355572545,1741307440363,-50.11328418,9.989e-05,2]
[355572546,1741307440373,-3723.25,9.989e-05,2]
[355572547,1741307440382,-500.0,9.989e-05,2]
[355572548,1741307440395,-1228.21,9.989e-05,2]
[355572549,1741307440404,-1072.25,9.989e-05,2]
[355572550,1741307440414,-745.32,9.989e-05,2]
[355572551,1741307440424,-853.77,9.989e-05,2]
[355572552,1741307440434,-392.08497582,9.989e-05,2]
[355572553,1741307440475,-184.59502418,9.989e-05,2]
[355572554,1741307440484,-500.0,9.989e-05,2]
[355572555,1741307440494,-155.49491832,9.989e-05,2]
[355572556,1741307440507,-732.7539132,9.989e-05,2]
[355572557,1741307440516,-297.2751068,9.989e-05,2]
[355572558,1741307440554,-202.7248932,9.989e-05,2]
[355572559,1741307440563,-500.0,9.989e-05,2]
[355572560,1741307440573,-756.69612217,9.989e-05,2]
[355572561,1741307440601,-302.01816281,9.989e-05,2]
[355572562,1741307440638,-329.87528792,9.989e-05,2]
[355572563,1741307440652,-1005.32904095,9.989e-05,2]
[355572564,1741307440695,-417.52036843,9.989e-05,2]
[355572593,1741307442977,-546.09,9.986e-05,2]
[355572594,1741307442986,-5407.26363682,9.987e-05,2]
[355572595,1741307443036,-1276.91636318,9.987e-05,2]
[355572596,1741307443045,-233.10444526,9.987e-05,2]
[355572597,1741307443056,-266.89555474,9.987e-05,2]
[355572598,1741307443065,-173.28941716,9.988e-05,2]
[355572599,1741307443077,-817.37058284,9.988e-05,2]
[355572600,1741307443087,-1474.49101772,9.989e-05,2]
[355572601,1741307443097,-500.0,9.989e-05,2]
[355572602,1741307443107,-500.0,9.989e-05,2]
[355572603,1741307443116,-491.5391314,9.989e-05,2]
[355572604,1741307443129,-8.4608686,9.989e-05,2]
[355572605,1741307443138,-925.5141314,9.989e-05,2]
[355572606,1741307443157,-961.8758686,9.989e-05,2]
[355572607,1741307443167,-500.0,9.989e-05,2]
[355572608,1741307443178,-5211.8,9.989e-05,2]
[355572609,1741307443188,-521.64184544,9.989e-05,2]
[355572610,1741307443198,-500.0,9.989e-05,2]
[355572611,1741307443208,-821.12989055,9.989e-05,2]
[355572612,1741307443225,-2049.13010945,9.989e-05,2]
[355572613,1741307443235,-500.0,9.989e-05,2]
[355572614,1741307443244,-500.0,9.989e-05,2]
[355572615,1741307443254,-500.0,9.989e-05,2]
[355572616,1741307443263,-2033.98,9.989e-05,2]
[355572617,1741307443272,-500.0,9.989e-05,2]
[355572618,1741307443282,-552.47,9.989e-05,2]
[355572619,1741307443291,-1871.05,9.989e-05,2]
[355572620,1741307443302,-500.0,9.989e-05,2]
[355572621,1741307443312,-500.0,9.989e-05,2]
[355572622,1741307443321,-1411.14,9.989e-05,2]
[355572623,1741307443331,-500.0,9.989e-05,2]
[355572624,1741307443341,-500.0,9.989e-05,2]
[355572625,1741307443350,-500.0,9.989e-05,2]
[355572626,1741307443360,-534.50702214,9.989e-05,2]
[355572627,1741307443370,-500.0,9.989e-05,2]
[355572628,1741307443379,-500.0,9.989e-05,2]
[355572629,1741307443389,-500.0,9.989e-05,2]
[355572630,1741307443403,-568.42,9.989e-05,2]
[355572631,1741307443413,-2099.31,9.989e-05,2]
[355572632,1741307443424,-500.0,9.989e-05,2]
[355572633,1741307443434,-503.72,9.989e-05,2]
[355572634,1741307443445,-849.08,9.989e-05,2]
[355572635,1741307443455,-500.0,9.989e-05,2]
[355572636,1741307443466,-5887.09,9.989e-05,2]
[355572637,1741307443475,-500.0,9.989e-05,2]
[355572638,1741307443484,-987.36,9.989e-05,2]
[355572639,1741307443494,-3801.77,9.989e-05,2]
[355572640,1741307443503,-500.0,9.989e-05,2]
[355572641,1741307443512,-1342.27,9.989e-05,2]
[355572642,1741307443523,-1268.15,9.989e-05,2]
[355572643,1741307443532,-500.0,9.989e-05,2]